[Event "Ceske Budejovice GM 2019"]
[Site "Ceske Budejovice"]
[Date "2019.07.02"]
[Round "4.1"]
[White "Miesbauer, Jan"]
[Black "Kazakov, Mikhail"]
[Result "0-1"]
[ECO "C41"]
[WhiteElo "2411"]
[BlackElo "2508"]
[Annotator "RC"]
[PlyCount "114"]
[EventDate "2019.07.02"]
[EventCountry "CZE"]
[SourceTitle "playchess.com"]
[Source "ChessBase"]
[SourceQuality "1"]
[TimeControl "5400+30"]

1. e4 {[%emt 0:00:00]} d6 {[%emt 0:00:00]} 2. d4 {[%emt 0:00:00]} Nf6 {[%emt 0:00:17]} 3. Nc3 {[%emt 0:00:01]} e5 {[%emt 0:00:19]} 4. Nf3 {[%emt 0:00:31]} Nbd7 {[%emt 0:00:13]} 5. g3 {[%emt 0:03:50]} Be7 {[%emt 0:03:55]} 6. Bg2 {[%emt 0:00:12]} O-O {[%emt 0:00:37]} 7. O-O {[%emt 0:00:24]} c6 {[%emt 0:00:49]} 8. a4 {[%emt 0:01:23]} a5 {[%emt 0:01:42]} 9. Re1 {[%emt 0:01:11]} Re8 {[%emt 0:00:39]} 10. h3 {[%emt 0:01:10]} Bf8 {[%emt 0:03:28]} 11. b3 {[%emt 0:06:30]} Qc7 {[%emt 0:15:21]} 12. Ba3 {[%emt 0:08:40]} Nb6 {[%emt 0:08:55]} 13. Qd3 {[%emt 0:06:18]} Bd7 {[%emt 0:03:10]} 14. Rad1 {[%emt 0:03:13]} Rad8 {[%emt 0:08:40]} 15. d5 {[%emt 0:04:51]} cxd5 {[%emt 0:03:53]} 16. exd5 {[%emt 0:01:16]} e4 {[%emt 0:07:43]} 17. Nxe4 {[%emt 0:00:41]} Nxe4 {[%emt 0:01:12]} 18. Rxe4 {[%emt 0:00:07]} Bf5 {[%emt 0:00:26]} 19. Nd4 {[%emt 0:01:00]} Bxe4 {[%emt 0:01:20]} 20. Bxe4 {[%emt 0:00:06]} g6 {[%emt 0:01:50]} 21. Nb5 {[%emt 0:02:47]} Qe7 {[%emt 0:02:42]} 22. Bg2 {[%emt 0:08:07]} Qf6 {[%emt 0:07:29]} 23. Qd2 {[%emt 0:02:40]} Nd7 {[%emt 0:03:24]} 24. c4 {[%emt 0:01:33]} Qe5 {[%emt 0:12:51]} 25. Bb2 {[%emt 0:03:50]} Qe2 {[%emt 0:00:29]} 26. Qd4 {[%emt 0:01:18]} Ne5 {[%emt 0:00:14]} 27. Kh1 {[%emt 0:09:05]} Bg7 {[%emt 0:00:44]} 28. Ba1 {[%emt 0:03:28]} Bf6 {[%emt 0:01:13]} 29. Nc3 {[%emt 0:04:06]} Qc2 {[%emt 0:03:04]} 30. Ne4 {[%emt 0:08:42]} Bg7 {[%emt 0:00:26]} 31. f4 {[%emt 0:04:22]} f5 {[%emt 0:04:04]} 32. Rd2 {[%emt 0:13:25]} Qb1+ {[%emt 0:01:28]} 33. Rd1 {[%emt 0:00:05]} Qxb3 {[%emt 0:00:26]} 34. Nxd6 {[%emt 0:00:26]} Rxd6 {[%emt 0:01:50]} 35. c5 {[%emt 0:00:15]} Bf6 {[%emt 0:00:53]} 36. fxe5 {[%emt 0:01:34]} Bxe5 {[%emt 0:00:26]} 37. Qg1 {[%emt 0:00:26]} Rdd8 {[%emt 0:00:44]} 38. d6 {[%emt 0:00:31]} Kg7 {[%emt 0:00:56]} 39. Bxe5+ {[%emt 0:00:52]} Rxe5 {[%emt 0:00:01]} 40. Rb1 {[%emt 0:00:30]} Qxg3 {[%emt 0:00:37]} 41. Rxb7+ {[%emt 0:00:00]} Kh6 {[%emt 0:00:00]} 42. Rb1 {[%emt 0:00:00]} f4 {[%emt 0:00:00]} 43. Rf1 {[%emt 0:00:00]} Qe3 {[%emt 0:00:00]} 44. Rc1 {[%emt 0:00:00]} Qa3 {[%emt 0:00:00]} 45. Rc4 {[%emt 0:00:00]} g5 {[%emt 0:00:00]} 46. Qf2 {[%emt 0:00:00]} Qe3 {[%emt 0:00:00]} 47. Kg1 {[%emt 0:00:00]} Rb8 {[%emt 0:00:00]} 48. Qxe3 {[%emt 0:01:19]} fxe3 {[%emt 0:00:00]} 49. Be4 {[%emt 0:00:44]} Rf8 {[%emt 0:01:52]} 50. Bd3 {[%emt 0:02:03]} Rd5 {[%emt 0:01:58]} 51. Rc3 {[%emt 0:00:40]} Rc8 {[%emt 0:00:41]} 52. Be4 {[%emt 0:01:13]} Rd1+ {[%emt 0:00:58]} 53. Kg2 {[%emt 0:00:07]} e2 {[%emt 0:00:21]} 54. Re3 {[%emt 0:00:27]} Rxc5 {[%emt 0:00:24]} 55. Rxe2 {[%emt 0:00:12]} Rxd6 {[%emt 0:00:07]} 56. Bc2 {[%emt 0:01:16]} Rcd5 {[%emt 0:01:11]} 57. Kf3 {[%emt 0:00:30]} Rd2 {[%emt 0:00:31]} 0-1

[Event "Ceske Budejovice GM 2019"]
[Site "Ceske Budejovice"]
[Date "2019.07.02"]
[Round "4.3"]
[White "Kraus, Tomas"]
[Black "Simacek, Pavel"]
[Result "1/2-1/2"]
[ECO "D24"]
[WhiteElo "2479"]
[BlackElo "2490"]
[Annotator "ChessBase"]
[PlyCount "44"]
[EventDate "2019.07.02"]
[EventCountry "CZE"]
[SourceTitle "playchess.com"]
[Source "ChessBase"]
[SourceQuality "1"]
[TimeControl "5400+30"]

1. d4 {[%emt 0:01:58]} d5 {[%emt 0:00:00]} 2. Nf3 {[%emt 0:01:21]} Nf6 {[%emt 0:00:04]} 3. c4 {[%emt 0:00:25]} dxc4 {[%emt 0:00:14]} 4. Nc3 {[%emt 0:03:27]} a6 {[%emt 0:04:19]} 5. a4 {[%emt 0:03:16]} e6 {[%emt 0:10:14]} 6. Bg5 {[%emt 0:02:04]} c5 {[%emt 0:05:35]} 7. e3 {[%emt 0:00:05]} cxd4 {[%emt 0:00:41]} 8. exd4 {[%emt 0:00:19]} Be7 {[%emt 0:00:27]} 9. Bxc4 {[%emt 0:01:37]} Nc6 {[%emt 0:00:13]} 10. O-O {[%emt 0:01:03]} O-O {[%emt 0:00:09]} 11. Re1 {[%emt 0:02:19]} Nd5 {[%emt 0:03:53]} 12. Bxd5 {[%emt 0:07:48]} exd5 {[%emt 0:01:06]} 13. Bxe7 {[%emt 0:00:30]} Nxe7 {[%emt 0:00:05]} 14. Qb3 {[%emt 0:01:36]} Rb8 {[%emt 0:01:02]} 15. Re5 {[%emt 0:10:54]} Be6 {[%emt 0:03:35]} 16. h3 {[%emt 0:16:28]} Nc6 {[%emt 0:03:29]} 17. Re2 {[%emt 0:03:35]} b5 {[%emt 0:03:39]} 18. axb5 {[%emt 0:01:36]} axb5 {[%emt 0:00:04]} 19. Ra6 {[%emt 0:02:45]} Qc8 {[%emt 0:02:26]} 20. Ra1 {[%emt 0:02:01]} Qd8 {[%emt 0:02:45]} 21. Ra6 {[%emt 0:00:04]} Qc8 {[%emt 0:00:45]} 22. Ra1 {[%emt 0:00:05]} Qd8 1/2-1/2

[Event "Ceske Budejovice GM 2019"]
[Site "Ceske Budejovice"]
[Date "2019.07.02"]
[Round "4.4"]
[White "Dhulipalla, Bala Chandra Prasad"]
[Black "Stefansson, Hannes"]
[Result "0-1"]
[ECO "A62"]
[WhiteElo "2419"]
[BlackElo "2561"]
[Annotator "ChessBase"]
[PlyCount "90"]
[EventDate "2019.07.02"]
[EventCountry "CZE"]
[SourceTitle "playchess.com"]
[Source "ChessBase"]
[SourceQuality "1"]
[TimeControl "5400+30"]

1. d4 {[%emt 0:00:00]} Nf6 {[%emt 0:00:00]} 2. c4 {[%emt 0:00:00]} e6 {[%emt 0:00:30]} 3. g3 {[%emt 0:00:00]} c5 {[%emt 0:00:32]} 4. d5 {[%emt 0:00:00]} exd5 {[%emt 0:00:07]} 5. cxd5 {[%emt 0:00:00]} g6 {[%emt 0:00:31]} 6. Nc3 {[%emt 0:00:00]} Bg7 {[%emt 0:00:33]} 7. Bg2 {[%emt 0:00:26]} d6 {[%emt 0:00:31]} 8. Nf3 {[%emt 0:00:07]} O-O {[%emt 0:00:09]} 9. O-O {[%emt 0:00:06]} Re8 {[%emt 0:00:23]} 10. Bf4 {[%emt 0:00:08]} Bf5 {[%emt 0:00:21]} 11. Nh4 {[%emt 0:07:52]} Bc8 {[%emt 0:00:34]} 12. Nf3 {[%emt 0:03:27]} Bf5 {[%emt 0:00:33]} 13. Nh4 {[%emt 0:03:07]} Bc8 {[%emt 0:00:06]} 14. Qd2 {[%emt 0:10:02]} a6 {[%emt 0:01:34]} 15. a4 {[%emt 0:07:23]} Qe7 {[%emt 0:01:39]} 16. Rfe1 {[%emt 0:07:48]} Nbd7 {[%emt 0:01:47]} 17. h3 {[%emt 0:02:53]} Ne5 {[%emt 0:12:50]} 18. Rab1 {[%emt 0:03:16]} Qf8 {[%emt 0:04:34]} 19. g4 {[%emt 0:03:15]} Rb8 {[%emt 0:02:50]} 20. Bg3 {[%emt 0:05:43]} b5 {[%emt 0:04:29]} 21. b4 {[%emt 0:03:35]} Bd7 {[%emt 0:05:03]} 22. axb5 {[%emt 0:01:02]} axb5 {[%emt 0:00:25]} 23. Nf3 {[%emt 0:15:28]} Nc4 {[%emt 0:09:01]} 24. Qd3 {[%emt 0:05:59]} Rec8 {[%emt 0:02:39]} 25. bxc5 {[%emt 0:03:19]} Rxc5 {[%emt 0:00:16]} 26. Nd4 {[%emt 0:01:15]} b4 {[%emt 0:00:48]} 27. Na2 {[%emt 0:00:46]} Ne5 {[%emt 0:08:12]} 28. Qb3 {[%emt 0:02:17]} h5 {[%emt 0:03:00]} 29. g5 {[%emt 0:03:30]} Nh7 {[%emt 0:00:13]} 30. h4 {[%emt 0:01:30]} Nc4 {[%emt 0:00:53]} 31. Qd3 {[%emt 0:00:12]} Bxd4 {[%emt 0:05:43]} 32. Qxd4 {[%emt 0:00:12]} b3 {[%emt 0:00:14]} 33. Nc3 {[%emt 0:08:22]} f5 {[%emt 0:02:43]} 34. gxf6 {[%emt 0:00:53]} Nxf6 {[%emt 0:00:11]} 35. Qd3 {[%emt 0:01:05]} b2 {[%emt 0:07:02]} 36. Qxg6+ {[%emt 0:01:39]} Qg7 {[%emt 0:00:06]} 37. Qd3 {[%emt 0:00:29]} Rb3 {[%emt 0:00:49]} 38. Qd4 {[%emt 0:01:05]} Na3 {[%emt 0:01:14]} 39. Ne4 {[%emt 0:00:47]} Nxe4 {[%emt 0:00:35]} 40. Qxe4 {[%emt 0:00:21]} Nxb1 {[%emt 0:00:28]} 41. Rxb1 {[%emt 0:00:00]} Rxg3 {[%emt 0:00:00]} 42. fxg3 {[%emt 0:00:00]} Qxg3 {[%emt 0:00:00]} 43. Kh1 {[%emt 0:00:00]} Rc1+ {[%emt 0:00:00]} 44. Bf1 {[%emt 0:00:00]} Qh3+ {[%emt 0:00:00]} 45. Kg1 {[%emt 0:00:00]} Qxf1+ {[%emt 0:00:00]} 0-1

[Event "Ceske Budejovice GM 2019"]
[Site "Ceske Budejovice"]
[Date "2019.07.02"]
[Round "4.5"]
[White "Olsen, Filip Boe"]
[Black "Szotkowski, Jakub"]
[Result "1/2-1/2"]
[ECO "D12"]
[WhiteElo "2391"]
[BlackElo "2378"]
[Annotator "NA"]
[PlyCount "76"]
[EventDate "2019.07.02"]
[EventCountry "CZE"]
[SourceTitle "playchess.com"]
[Source "ChessBase"]
[SourceQuality "1"]
[TimeControl "5400+30"]

1. d4 {[%emt 0:00:00]} d5 {[%emt 0:03:05]} 2. c4 {[%emt 0:00:00]} c6 {[%emt 0:00:26]} 3. Nf3 {[%emt 0:00:05]} Nf6 {[%emt 0:00:17]} 4. e3 {[%emt 0:00:07]} Bf5 {[%emt 0:00:31]} 5. Nc3 {[%emt 0:00:12]} e6 {[%emt 0:00:28]} 6. Nh4 {[%emt 0:00:09]} Bg4 {[%emt 0:01:15]} 7. Qb3 {[%emt 0:00:25]} Qb6 {[%emt 0:03:16]} 8. h3 {[%emt 0:03:01]} Bh5 {[%emt 0:02:02]} 9. g4 {[%emt 0:02:56]} Bg6 {[%emt 0:00:50]} 10. Nxg6 {[%emt 0:03:49]} hxg6 {[%emt 0:00:10]} 11. g5 {[%emt 0:01:36]} Ng8 {[%emt 0:17:28]} 12. f4 {[%emt 0:06:50]} Nd7 {[%emt 0:08:16]} 13. Qxb6 {[%emt 0:12:34]} axb6 {[%emt 0:01:23]} 14. cxd5 {[%emt 0:00:51]} exd5 {[%emt 0:00:10]} 15. Ne2 {[%emt 0:03:51]} Ne7 {[%emt 0:04:34]} 16. Ng3 {[%emt 0:00:57]} Rh4 {[%emt 0:06:46]} 17. Bd3 {[%emt 0:04:43]} Kd8 {[%emt 0:08:40]} 18. Bd2 {[%emt 0:04:12]} Kc7 {[%emt 0:02:00]} 19. Kf2 {[%emt 0:01:37]} f5 {[%emt 0:03:40]} 20. Ne2 {[%emt 0:05:33]} Nc8 {[%emt 0:03:50]} 21. Kg3 {[%emt 0:01:29]} Rh8 {[%emt 0:02:13]} 22. h4 {[%emt 0:00:27]} Nd6 {[%emt 0:00:24]} 23. Kg2 {[%emt 0:00:51]} b5 {[%emt 0:05:22]} 24. Ng3 {[%emt 0:03:21]} Nb6 {[%emt 0:01:03]} 25. b3 {[%emt 0:01:58]} Ne4 {[%emt 0:02:19]} 26. Bxe4 {[%emt 0:02:53]} dxe4 {[%emt 0:01:08]} 27. h5 {[%emt 0:01:32]} Kd7 {[%emt 0:00:36]} 28. hxg6 {[%emt 0:03:11]} Rxh1 {[%emt 0:00:07]} 29. Kxh1 {[%emt 0:00:17]} Ke6 {[%emt 0:00:05]} 30. Nh5 {[%emt 0:01:22]} Nd5 {[%emt 0:05:35]} 31. Kg1 {[%emt 0:00:54]} b4 {[%emt 0:02:57]} 32. Kf2 {[%emt 0:01:39]} Ra3 {[%emt 0:01:42]} 33. Ke2 {[%emt 0:01:27]} Nc3+ {[%emt 0:01:57]} 34. Bxc3 {[%emt 0:00:50]} bxc3 {[%emt 0:00:04]} 35. Kd1 {[%emt 0:01:01]} b5 {[%emt 0:00:18]} 36. Kc2 {[%emt 0:00:39]} b4 {[%emt 0:00:13]} 37. Kd1 {[%emt 0:01:25]} Ra7 {[%emt 0:08:36]} 38. Ng3 {[%emt 0:03:40]} Ra3 {[%emt 0:02:17]} 1/2-1/2

[Event "Ceske Budejovice GM 2019"]
[Site "Ceske Budejovice"]
[Date "2019.07.03"]
[Round "5.1"]
[White "Szotkowski, Jakub"]
[Black "Miesbauer, Jan"]
[Result "0-1"]
[ECO "D16"]
[WhiteElo "2378"]
[BlackElo "2409"]
[Annotator "NA"]
[PlyCount "96"]
[EventDate "2019.07.02"]
[EventCountry "CZE"]
[SourceTitle "playchess.com"]
[Source "ChessBase"]
[SourceQuality "1"]
[TimeControl "5400+30"]

1. d4 {[%emt 0:01:30]} d5 {[%emt 0:02:28]} 2. c4 {[%emt 0:00:35]} dxc4 {[%emt 0:00:22]} 3. Nf3 {[%emt 0:01:35]} Nf6 {[%emt 0:00:21]} 4. Nc3 {[%emt 0:01:45]} c6 {[%emt 0:01:02]} 5. a4 {[%emt 0:01:54]} e6 {[%emt 0:00:22]} 6. e3 {[%emt 0:05:25]} c5 {[%emt 0:00:32]} 7. Bxc4 {[%emt 0:01:13]} Nc6 {[%emt 0:00:41]} 8. O-O {[%emt 0:01:27]} cxd4 {[%emt 0:01:10]} 9. exd4 {[%emt 0:00:16]} Be7 {[%emt 0:00:36]} 10. Qe2 {[%emt 0:03:26]} O-O {[%emt 0:01:13]} 11. Rd1 {[%emt 0:00:12]} Nb4 {[%emt 0:00:43]} 12. Bg5 {[%emt 0:03:55]} Bd7 {[%emt 0:07:10]} 13. Ne5 {[%emt 0:14:02]} Bc6 {[%emt 0:03:22]} 14. a5 {[%emt 0:10:01]} Bd5 {[%emt 0:02:16]} 15. b3 {[%emt 0:03:23]} Rc8 {[%emt 0:03:48]} 16. Ra4 {[%emt 0:03:48]} a6 {[%emt 0:13:20]} 17. Bxf6 {[%emt 0:04:52]} gxf6 {[%emt 0:00:08]} 18. Ng4 {[%emt 0:01:43]} Bxc4 {[%emt 0:07:39]} 19. bxc4 {[%emt 0:00:21]} f5 {[%emt 0:03:40]} 20. Ne5 {[%emt 0:05:48]} Qc7 {[%emt 0:05:56]} 21. Na2 {[%emt 0:12:59]} Nc6 {[%emt 0:04:30]} 22. Nf3 {[%emt 0:03:05]} Rfd8 {[%emt 0:07:16]} 23. d5 {[%emt 0:02:00]} Nxa5 {[%emt 0:02:32]} 24. dxe6 {[%emt 0:01:41]} Rxd1+ {[%emt 0:00:28]} 25. Qxd1 {[%emt 0:00:04]} fxe6 {[%emt 0:00:42]} 26. Qe1 {[%emt 0:01:15]} Nxc4 {[%emt 0:03:35]} 27. Qxe6+ {[%emt 0:00:05]} Kh8 {[%emt 0:00:26]} 28. Nc3 {[%emt 0:04:39]} Bf8 {[%emt 0:10:24]} 29. g3 {[%emt 0:06:52]} Bg7 {[%emt 0:02:36]} 30. Nd5 {[%emt 0:01:23]} Qc6 {[%emt 0:00:59]} 31. Ng5 {[%emt 0:02:06]} Qxe6 {[%emt 0:00:29]} 32. Nxe6 {[%emt 0:00:05]} Nd6 {[%emt 0:06:43]} 33. Ne3 {[%emt 0:01:23]} Ra8 {[%emt 0:02:31]} 34. Ra2 {[%emt 0:01:07]} a5 {[%emt 0:04:15]} 35. Rd2 {[%emt 0:00:10]} Ne8 {[%emt 0:00:31]} 36. Nxf5 {[%emt 0:00:33]} a4 {[%emt 0:01:18]} 37. Nc5 {[%emt 0:01:18]} b5 {[%emt 0:01:16]} 38. Ne3 {[%emt 0:00:32]} a3 {[%emt 0:00:46]} 39. Ra2 {[%emt 0:00:10]} b4 {[%emt 0:00:44]} 40. Nd5 {[%emt 0:00:45]} Bf8 {[%emt 0:00:21]} 41. Nb3 {[%emt 0:00:00]} Kg7 {[%emt 0:00:00]} 42. Kf1 {[%emt 0:00:00]} Nf6 {[%emt 0:00:00]} 43. Nc7 {[%emt 0:00:00]} Rc8 {[%emt 0:00:00]} 44. Ne6+ {[%emt 0:00:00]} Kf7 {[%emt 0:00:00]} 45. Nxf8 {[%emt 0:00:00]} Kxf8 {[%emt 0:00:00]} 46. Ke1 {[%emt 0:00:00]} Ne4 {[%emt 0:00:00]} 47. f4 {[%emt 0:00:00]} Rc3 {[%emt 0:00:00]} 48. Na5 {[%emt 0:00:00]} Rc1+ {[%emt 0:00:00]} 0-1

[Event "Ceske Budejovice GM 2019"]
[Site "Ceske Budejovice"]
[Date "2019.07.03"]
[Round "5.2"]
[White "Stefansson, Hannes"]
[Black "Olsen, Filip Boe"]
[Result "1-0"]
[ECO "A13"]
[WhiteElo "2562"]
[BlackElo "2383"]
[Annotator "ChessBase"]
[PlyCount "157"]
[EventDate "2019.07.02"]
[EventCountry "CZE"]
[SourceTitle "playchess.com"]
[Source "ChessBase"]
[SourceQuality "1"]
[TimeControl "5400+30"]

1. c4 {[%emt 0:00:00]} e6 {[%emt 0:00:00]} 2. g3 {[%emt 0:00:29]} Nf6 {[%emt 0:00:00]} 3. Bg2 {[%emt 0:00:19]} d5 {[%emt 0:00:09]} 4. Nf3 {[%emt 0:00:26]} dxc4 {[%emt 0:01:15]} 5. Qa4+ {[%emt 0:00:28]} Bd7 {[%emt 0:00:39]} 6. Qxc4 {[%emt 0:00:08]} c5 {[%emt 0:00:11]} 7. Ne5 {[%emt 0:00:18]} Qc8 {[%emt 0:00:09]} 8. Qd3 {[%emt 0:00:25]} Nc6 {[%emt 0:04:04]} 9. Nxd7 {[%emt 0:00:39]} Nxd7 {[%emt 0:03:00]} 10. Nc3 {[%emt 0:00:43]} Be7 {[%emt 0:01:25]} 11. b3 {[%emt 0:00:30]} O-O {[%emt 0:01:04]} 12. Bb2 {[%emt 0:00:28]} Rd8 {[%emt 0:02:38]} 13. Rc1 {[%emt 0:00:32]} Nf6 {[%emt 0:05:40]} 14. Qb1 {[%emt 0:00:53]} Qd7 {[%emt 0:01:39]} 15. d3 {[%emt 0:01:58]} Rac8 {[%emt 0:05:24]} 16. O-O {[%emt 0:03:22]} b6 {[%emt 0:02:23]} 17. Rfd1 {[%emt 0:03:03]} Nd5 {[%emt 0:14:00]} 18. e3 {[%emt 0:03:08]} Ncb4 {[%emt 0:05:58]} 19. Ne2 {[%emt 0:03:16]} Bf6 {[%emt 0:02:18]} 20. d4 {[%emt 0:01:18]} cxd4 {[%emt 0:02:18]} 21. Nxd4 {[%emt 0:01:29]} Rxc1 {[%emt 0:02:15]} 22. Rxc1 {[%emt 0:00:13]} Rc8 {[%emt 0:02:30]} 23. Rd1 {[%emt 0:05:31]} Qe7 {[%emt 0:12:54]} 24. a3 {[%emt 0:05:00]} Nc6 {[%emt 0:09:29]} 25. Nxc6 {[%emt 0:04:02]} Rxc6 {[%emt 0:00:03]} 26. Bxd5 {[%emt 0:01:22]} exd5 {[%emt 0:00:03]} 27. Rxd5 {[%emt 0:00:19]} g6 {[%emt 0:08:04]} 28. Rd1 {[%emt 0:05:05]} Rd6 {[%emt 0:04:03]} 29. Rxd6 {[%emt 0:01:45]} Qxd6 {[%emt 0:00:02]} 30. Bxf6 {[%emt 0:00:27]} Qxf6 {[%emt 0:00:02]} 31. Qd1 {[%emt 0:00:22]} h5 {[%emt 0:01:19]} 32. a4 {[%emt 0:02:15]} Qf5 {[%emt 0:04:12]} 33. b4 {[%emt 0:05:02]} Qe4 {[%emt 0:02:00]} 34. b5 {[%emt 0:02:13]} Kh7 {[%emt 0:02:55]} 35. h4 {[%emt 0:01:56]} Kg8 {[%emt 0:00:54]} 36. Qd8+ {[%emt 0:02:16]} Kh7 {[%emt 0:00:08]} 37. Qd4 {[%emt 0:03:34]} Qb1+ {[%emt 0:00:35]} 38. Kg2 {[%emt 0:00:10]} Qc2 {[%emt 0:00:19]} 39. g4 {[%emt 0:07:54]} hxg4 {[%emt 0:00:54]} 40. Qxg4 {[%emt 0:00:10]} Qb3 {[%emt 0:00:36]} 41. Qe4 {[%emt 0:05:55]} Kg8 {[%emt 0:02:09]} 42. Qd4 {[%emt 0:04:13]} Kh7 {[%emt 0:00:00]} 43. e4 {[%emt 0:00:00]} Kg8 {[%emt 0:00:00]} 44. f3 {[%emt 0:00:00]} Qa2+ {[%emt 0:00:00]} 45. Kg3 {[%emt 0:00:00]} Qb3 {[%emt 0:00:00]} 46. Kf4 {[%emt 0:00:00]} Qc2 {[%emt 0:00:00]} 47. Kg5 {[%emt 0:00:00]} Qc8 {[%emt 0:00:00]} 48. Qd6 {[%emt 0:00:00]} Qc3 {[%emt 0:00:00]} 49. Qf6 {[%emt 0:00:00]} Qc1+ {[%emt 0:00:00]} 50. Qf4 {[%emt 0:00:00]} Qc5+ {[%emt 0:00:00]} 51. e5 {[%emt 0:00:28]} Qe7+ {[%emt 0:00:00]} 52. Qf6 {[%emt 0:01:21]} Qc5 {[%emt 0:00:00]} 53. h5 {[%emt 0:03:21]} Qe3+ {[%emt 0:00:00]} 54. Qf4 {[%emt 0:01:18]} Qd3 {[%emt 0:00:00]} 55. hxg6 {[%emt 0:03:13]} Qxg6+ {[%emt 0:00:00]} 56. Kh4 {[%emt 0:00:04]} Qh7+ {[%emt 0:00:00]} 57. Kg4 {[%emt 0:00:41]} Qc2 {[%emt 0:00:00]} 58. Qe4 {[%emt 0:01:00]} Qg2+ {[%emt 0:00:00]} 59. Kf4 {[%emt 0:02:56]} Qh2+ {[%emt 0:00:00]} 60. Kf5 {[%emt 0:01:22]} Qh7+ {[%emt 0:01:16]} 61. Kg5 {[%emt 0:00:16]} Qg7+ {[%emt 0:00:16]} 62. Kh5 {[%emt 0:00:09]} Qh8+ {[%emt 0:00:23]} 63. Kg4 {[%emt 0:00:05]} Qh2 {[%emt 0:01:37]} 64. Qe1 {[%emt 0:01:55]} Qc2 {[%emt 0:00:26]} 65. Qe4 {[%emt 0:01:14]} Qh2 {[%emt 0:01:04]} 66. e6 {[%emt 0:03:52]} Qg2+ {[%emt 0:00:38]} 67. Kf4 {[%emt 0:00:39]} Qh2+ {[%emt 0:03:21]} 68. Kf5 {[%emt 0:00:51]} Qh7+ {[%emt 0:00:57]} 69. Ke5 {[%emt 0:00:13]} Qh2+ {[%emt 0:00:50]} 70. f4 {[%emt 0:02:03]} Qb2+ {[%emt 0:00:56]} 71. Kd6 {[%emt 0:01:18]} Qd2+ {[%emt 0:01:19]} 72. Kc7 {[%emt 0:01:38]} Qc1+ {[%emt 0:01:18]} 73. Kb7 {[%emt 0:00:18]} fxe6 {[%emt 0:01:19]} 74. Qxe6+ {[%emt 0:00:06]} Kh7 {[%emt 0:00:07]} 75. f5 {[%emt 0:01:36]} Qh1+ {[%emt 0:00:43]} 76. Qc6 {[%emt 0:01:21]} Qh4 {[%emt 0:00:09]} 77. Qg6+ {[%emt 0:01:26]} Kh8 {[%emt 0:00:05]} 78. f6 {[%emt 0:00:43]} Qh1+ {[%emt 0:00:17]} 79. Ka6 {[%emt 0:00:06]} 1-0

[Event "Ceske Budejovice GM 2019"]
[Site "Ceske Budejovice"]
[Date "2019.07.04"]
[Round "6.1"]
[White "Miesbauer, Jan"]
[Black "Vykouk, Jan"]
[Result "0-1"]
[ECO "A06"]
[WhiteElo "2409"]
[BlackElo "2453"]
[Annotator "ChessBase"]
[PlyCount "106"]
[EventDate "2019.07.02"]
[EventCountry "CZE"]
[SourceTitle "playchess.com"]
[Source "ChessBase"]
[SourceQuality "1"]
[TimeControl "5400+30"]

1. Nf3 {[%emt 0:00:00]} d5 {[%emt 0:00:05]} 2. g3 {[%emt 0:00:08]} Nd7 {[%emt 0:02:16]} 3. c4 {[%emt 0:02:19]} dxc4 {[%emt 0:00:19]} 4. Qa4 {[%emt 0:02:33]} Ngf6 {[%emt 0:01:44]} 5. Bg2 {[%emt 0:00:32]} c6 {[%emt 0:00:39]} 6. Qxc4 {[%emt 0:00:19]} e5 {[%emt 0:00:16]} 7. d3 {[%emt 0:01:21]} Bd6 {[%emt 0:00:23]} 8. O-O {[%emt 0:00:25]} O-O {[%emt 0:00:20]} 9. Nbd2 {[%emt 0:03:51]} Nb6 {[%emt 0:00:10]} 10. Qc2 {[%emt 0:00:14]} h6 {[%emt 0:00:21]} 11. b3 {[%emt 0:01:37]} Bf5 {[%emt 0:00:10]} 12. Bb2 {[%emt 0:01:56]} Re8 {[%emt 0:00:06]} 13. e4 {[%emt 0:00:23]} Bh7 {[%emt 0:01:10]} 14. Nc4 {[%emt 0:06:01]} Nxc4 {[%emt 0:00:07]} 15. bxc4 {[%emt 0:00:47]} Nd7 {[%emt 0:03:11]} 16. Nd2 {[%emt 0:00:57]} Qe7 {[%emt 0:00:26]} 17. Kh1 {[%emt 0:10:46]} Rad8 {[%emt 0:00:08]} 18. f4 {[%emt 0:05:45]} Nc5 {[%emt 0:00:05]} 19. Rad1 {[%emt 0:00:51]} exf4 {[%emt 0:02:29]} 20. gxf4 {[%emt 0:11:23]} Qh4 {[%emt 0:00:07]} 21. Nf3 {[%emt 0:06:18]} Qxf4 {[%emt 0:00:06]} 22. Rg1 {[%emt 0:03:53]} Bf8 {[%emt 0:07:20]} 23. Nd4 {[%emt 0:04:33]} Ne6 {[%emt 0:04:02]} 24. Nf5 {[%emt 0:04:14]} Bxf5 {[%emt 0:00:46]} 25. Rdf1 {[%emt 0:00:50]} Qh4 {[%emt 0:06:14]} 26. exf5 {[%emt 0:01:45]} Ng5 {[%emt 0:00:50]} 27. Be4 {[%emt 0:08:08]} f6 {[%emt 0:01:41]} 28. Rg2 {[%emt 0:04:51]} Kh8 {[%emt 0:01:43]} 29. Re2 {[%emt 0:03:22]} Qh3 {[%emt 0:03:44]} 30. Rfe1 {[%emt 0:02:00]} Nxe4 {[%emt 0:03:10]} 31. dxe4 {[%emt 0:00:40]} Qf3+ {[%emt 0:01:59]} 32. Rg2 {[%emt 0:00:11]} Bb4 {[%emt 0:02:28]} 33. Qe2 {[%emt 0:01:21]} Qxe2 {[%emt 0:03:05]} 34. Rexe2 {[%emt 0:00:06]} Bc5 {[%emt 0:00:59]} 35. Rg3 {[%emt 0:04:19]} Rd1+ {[%emt 0:00:27]} 36. Kg2 {[%emt 0:00:07]} Bd4 {[%emt 0:05:36]} 37. Rb3 {[%emt 0:03:12]} b6 {[%emt 0:00:52]} 38. Bc3 {[%emt 0:02:37]} c5 {[%emt 0:01:41]} 39. Bd2 {[%emt 0:01:35]} Rg1+ {[%emt 0:05:10]} 40. Kh3 {[%emt 0:02:05]} Rf1 {[%emt 0:02:33]} 41. Kg2 {[%emt 0:01:31]} Rxf5 {[%emt 0:00:18]} 42. Ra3 {[%emt 0:00:20]} Rfe5 {[%emt 0:01:57]} 43. Rxa7 {[%emt 0:00:50]} Rxe4 {[%emt 0:00:17]} 44. Rxe4 {[%emt 0:00:04]} Rxe4 {[%emt 0:00:04]} 45. Kf3 {[%emt 0:00:19]} Re6 {[%emt 0:00:22]} 46. Rb7 {[%emt 0:01:09]} Kh7 {[%emt 0:01:01]} 47. Bf4 {[%emt 0:00:00]} Kg6 {[%emt 0:00:00]} 48. a4 {[%emt 0:00:00]} Bc3 {[%emt 0:00:00]} 49. Bg3 {[%emt 0:00:00]} f5 {[%emt 0:00:00]} 50. Bc7 {[%emt 0:00:00]} Ba5 {[%emt 0:00:00]} 51. Bd8 {[%emt 0:00:00]} Re1 {[%emt 0:00:00]} 52. Rb8 {[%emt 0:00:00]} Re8 {[%emt 0:00:00]} 53. Rc8 {[%emt 0:00:00]} Kh5 {[%emt 0:00:00]} 0-1